[Event "Late-Titled-Tuesday-Blitz-June-18-2024"]
[Site "Chess.com"]
[Date "2024.06.18"]
[Round "3"]
[White "Millerkallpa"]
[Black "Perecke"]
[Result "0-1"]
[WhiteElo "2206"]
[BlackElo "2542"]
[TimeControl "180+1"]
[EndTime "14:30:03 PDT"]
[Termination "Perecke won on time"]

1. e4 {[%clk 0:03:00.9]} 1... e5 {[%clk 0:02:59.8]} 2. Nf3 {[%clk 0:03:00.5]}
2... Nc6 {[%clk 0:02:59.9]} 3. Bb5 {[%clk 0:03:00.5]} 3... a6 {[%clk 0:03:00.3]}
4. Ba4 {[%clk 0:03:00.7]} 4... Nf6 {[%clk 0:03:00.1]} 5. O-O {[%clk 0:03:00.1]}
5... Be7 {[%clk 0:03:00.3]} 6. Re1 {[%clk 0:02:59.7]} 6... b5 {[%clk 0:03:00.3]}
7. Bb3 {[%clk 0:02:59.8]} 7... d6 {[%clk 0:03:00.8]} 8. c3 {[%clk 0:02:57.1]}
8... O-O {[%clk 0:03:00.7]} 9. h3 {[%clk 0:02:57.5]} 9... Na5 {[%clk 0:03:00.7]}
10. Bc2 {[%clk 0:02:57.3]} 10... c5 {[%clk 0:03:00.8]} 11. d4 {[%clk 0:02:57.7]}
11... Qc7 {[%clk 0:03:01.2]} 12. Nbd2 {[%clk 0:02:54]} 12... cxd4 {[%clk
0:03:02.1]} 13. cxd4 {[%clk 0:02:53.6]} 13... Nc6 {[%clk 0:03:02.4]} 14. Nb3
{[%clk 0:02:53]} 14... a5 {[%clk 0:03:01.3]} 15. Be3 {[%clk 0:02:51.1]} 15... a4
{[%clk 0:02:58.2]} 16. Nbd2 {[%clk 0:02:51.3]} 16... Bd7 {[%clk 0:02:43.8]} 17.
Rc1 {[%clk 0:02:48.1]} 17... Rac8 {[%clk 0:02:41.2]} 18. Bd3 {[%clk 0:02:47.6]}
18... Qb7 {[%clk 0:02:38.8]} 19. Qe2 {[%clk 0:02:44.5]} 19... Rfe8 {[%clk
0:02:29.9]} 20. dxe5 {[%clk 0:02:44.2]} 20... Nxe5 {[%clk 0:02:21.9]} 21. Nxe5
{[%clk 0:02:31.4]} 21... dxe5 {[%clk 0:02:22.8]} 22. Nf3 {[%clk 0:02:12.8]}
22... Bb4 {[%clk 0:02:18.2]} 23. Rxc8 {[%clk 0:01:29.1]} 23... Rxc8 {[%clk
0:02:17.4]} 24. Rd1 {[%clk 0:01:29.6]} 24... Re8 {[%clk 0:02:01.8]} 25. Bg5
{[%clk 0:01:12.5]} 25... Nh5 {[%clk 0:01:41]} 26. a3 {[%clk 0:00:33.9]} 26...
Bc5 {[%clk 0:01:36.7]} 27. Qc2 {[%clk 0:00:27.9]} 27... Rc8 {[%clk 0:01:25.2]}
28. Qd2 {[%clk 0:00:27.5]} 28... h6 {[%clk 0:01:15.3]} 29. Be3 {[%clk
0:00:24.5]} 29... Bxe3 {[%clk 0:01:06.1]} 30. Qxe3 {[%clk 0:00:25.4]} 30... Qc7
{[%clk 0:00:55.4]} 31. Bf1 {[%clk 0:00:15.2]} 31... Nf4 {[%clk 0:00:51.5]} 32.
g3 {[%clk 0:00:13.4]} 32... Nxh3+ {[%clk 0:00:48.1]} 33. Bxh3 {[%clk 0:00:13.5]}
33... Bxh3 {[%clk 0:00:45.2]} 34. Rd5 {[%clk 0:00:14.1]} 34... f6 {[%clk
0:00:23.4]} 35. Rxb5 {[%clk 0:00:12.9]} 35... Bg4 {[%clk 0:00:23.6]} 36. Rd5
{[%clk 0:00:11.1]} 36... Qc1+ {[%clk 0:00:22.1]} 37. Qxc1 {[%clk 0:00:11.2]}
37... Rxc1+ {[%clk 0:00:22.6]} 38. Kg2 {[%clk 0:00:12]} 38... Rc2 {[%clk
0:00:22.2]} 39. Nh2 {[%clk 0:00:09.6]} 39... Be6 {[%clk 0:00:20.6]} 40. Rb5
{[%clk 0:00:10]} 40... Bb3 {[%clk 0:00:20.7]} 41. Nf1 {[%clk 0:00:07.7]} 41...
Rxb2 {[%clk 0:00:20.9]} 42. Ne3 {[%clk 0:00:07.6]} 42... Ra2 {[%clk 0:00:19.9]}
43. Rb7 {[%clk 0:00:07]} 43... Rxa3 {[%clk 0:00:19.5]} 44. Nf5 {[%clk
0:00:06.8]} 44... Bf7 {[%clk 0:00:18.2]} 45. Nd6 {[%clk 0:00:06.1]} 45... Be6
{[%clk 0:00:17.3]} 46. Re7 {[%clk 0:00:04.9]} 46... Bg4 {[%clk 0:00:16.6]} 47.
Ra7 {[%clk 0:00:03.6]} 47... Bf3+ {[%clk 0:00:16.9]} 48. Kh3 {[%clk 0:00:03]}
48... Ra1 {[%clk 0:00:17.6]} 49. g4 {[%clk 0:00:01.4]} 49... a3 {[%clk
0:00:14.9]} 50. Nf5 {[%clk 0:00:01]} 50... g6 {[%clk 0:00:13.2]} 0-1

[Event "Late-Titled-Tuesday-Blitz-June-18-2024"]
[Site "Chess.com"]
[Date "2024.06.18"]
[Round "3"]
[White "N_I_Chess"]
[Black "Gyulamiryan-koryun"]
[Result "1-0"]
[WhiteElo "2335"]
[BlackElo "1664"]
[TimeControl "180+1"]
[EndTime "14:30:04 PDT"]
[Termination "N_I_Chess won on time"]

1. d4 {[%clk 0:02:59.2]} 1... Nf6 {[%clk 0:02:59.4]} 2. c4 {[%clk 0:02:39.3]}
2... c5 {[%clk 0:02:59.2]} 3. d5 {[%clk 0:02:39.2]} 3... b5 {[%clk 0:02:59]} 4.
Nd2 {[%clk 0:02:39.2]} 4... g6 {[%clk 0:02:55.3]} 5. b3 {[%clk 0:02:37.8]} 5...
Bg7 {[%clk 0:02:54.5]} 6. Bb2 {[%clk 0:02:37.9]} 6... O-O {[%clk 0:02:54.6]} 7.
Qc2 {[%clk 0:02:37.8]} 7... b4 {[%clk 0:02:54.5]} 8. e4 {[%clk 0:02:37.8]} 8...
d6 {[%clk 0:02:53.2]} 9. Bd3 {[%clk 0:02:36.8]} 9... a5 {[%clk 0:02:53]} 10. a4
{[%clk 0:02:35.8]} 10... e5 {[%clk 0:02:38.7]} 11. dxe6 {[%clk 0:02:06.7]} 11...
fxe6 {[%clk 0:02:38.3]} 12. h3 {[%clk 0:01:58.4]} 12... e5 {[%clk 0:02:36.3]}
13. Ne2 {[%clk 0:01:46.9]} 13... Nc6 {[%clk 0:02:36.3]} 14. O-O {[%clk
0:01:45.4]} 14... Nh5 {[%clk 0:02:34.5]} 15. Bc1 {[%clk 0:01:31]} 15... Nf4
{[%clk 0:02:27.7]} 16. Nxf4 {[%clk 0:01:28.6]} 16... exf4 {[%clk 0:02:25]} 17.
Ra2 {[%clk 0:01:09.2]} 17... Nd4 {[%clk 0:02:23.2]} 18. Qd1 {[%clk 0:01:08.7]}
18... Qh4 {[%clk 0:02:12.9]} 19. Nf3 {[%clk 0:01:05]} 19... Nxf3+ {[%clk
0:02:04]} 20. Qxf3 {[%clk 0:01:04.7]} 20... g5 {[%clk 0:02:01.4]} 21. e5 {[%clk
0:01:01.6]} 21... Bf5 {[%clk 0:01:59.6]} 22. Bxf5 {[%clk 0:00:58.8]} 22... dxe5
{[%clk 0:01:56.9]} 23. Be6+ {[%clk 0:00:51.9]} 23... Kh8 {[%clk 0:01:56.2]} 24.
Re2 {[%clk 0:00:48.5]} 24... Rae8 {[%clk 0:01:55.6]} 25. Bd5 {[%clk 0:00:48.1]}
25... Qh6 {[%clk 0:01:40.4]} 26. Bb2 {[%clk 0:00:45.9]} 26... Qd6 {[%clk
0:01:18.5]} 27. Rfe1 {[%clk 0:00:40.7]} 27... Rf5 {[%clk 0:01:15.3]} 28. Bc6
{[%clk 0:00:25.4]} 28... Re7 {[%clk 0:01:13]} 29. Qg4 {[%clk 0:00:23]} 29... Rf8
{[%clk 0:00:58]} 30. Be4 {[%clk 0:00:18]} 30... Re6 {[%clk 0:00:38]} 31. Bd5
{[%clk 0:00:16.6]} 31... Re7 {[%clk 0:00:34.6]} 32. Qh5 {[%clk 0:00:14.3]} 32...
Qg6 {[%clk 0:00:29.6]} 33. Qxg6 {[%clk 0:00:13.7]} 33... hxg6 {[%clk 0:00:29.3]}
34. Be4 {[%clk 0:00:14.3]} 34... Kh7 {[%clk 0:00:28.3]} 35. Rd2 {[%clk
0:00:13.2]} 35... Kh6 {[%clk 0:00:27.6]} 36. Rd6 {[%clk 0:00:13.1]} 36... Bf6
{[%clk 0:00:24.9]} 37. Red1 {[%clk 0:00:13.1]} 37... Ree8 {[%clk 0:00:15.4]} 38.
Ra6 {[%clk 0:00:12.8]} 38... Rd8 {[%clk 0:00:10.4]} 39. Rdd6 {[%clk 0:00:12.2]}
39... Rxd6 {[%clk 0:00:08.5]} 40. Rxd6 {[%clk 0:00:13.1]} 40... Kg7 {[%clk
0:00:08.4]} 41. f3 {[%clk 0:00:11.3]} 41... Rf7 {[%clk 0:00:06.7]} 42. Rd5
{[%clk 0:00:10.4]} 42... Rc7 {[%clk 0:00:06]} 43. Kf1 {[%clk 0:00:10.3]} 43...
Kf7 {[%clk 0:00:04]} 44. Rd6 {[%clk 0:00:08.5]} 1-0

[Event "Late-Titled-Tuesday-Blitz-June-18-2024"]
[Site "Chess.com"]
[Date "2024.06.18"]
[Round "3"]
[White "betta2004"]
[Black "carloseduar100"]
[Result "1-0"]
[WhiteElo "2470"]
[BlackElo "2252"]
[TimeControl "180+1"]
[EndTime "14:30:05 PDT"]
[Termination "betta2004 won by checkmate"]

1. Nf3 {[%clk 0:03:00.9]} 1... e6 {[%clk 0:02:59.8]} 2. b3 {[%clk 0:03:00.1]}
2... d5 {[%clk 0:03:00.5]} 3. Bb2 {[%clk 0:03:00.3]} 3... Nf6 {[%clk 0:03:00.8]}
4. e3 {[%clk 0:03:00.7]} 4... c5 {[%clk 0:02:59.9]} 5. d4 {[%clk 0:03:01]} 5...
Nc6 {[%clk 0:03:00.3]} 6. Nbd2 {[%clk 0:02:59.6]} 6... cxd4 {[%clk 0:03:00.9]}
7. exd4 {[%clk 0:02:59.6]} 7... Bd6 {[%clk 0:02:59.9]} 8. Bd3 {[%clk 0:02:59.8]}
8... O-O {[%clk 0:02:59.9]} 9. Ne5 {[%clk 0:02:59.9]} 9... Re8 {[%clk
0:02:59.5]} 10. O-O {[%clk 0:02:58.6]} 10... a6 {[%clk 0:02:55.1]} 11. f4 {[%clk
0:02:58.7]} 11... Ne7 {[%clk 0:02:53.4]} 12. Qf3 {[%clk 0:02:57.2]} 12... b5
{[%clk 0:02:53.1]} 13. Rae1 {[%clk 0:02:56.7]} 13... Bb7 {[%clk 0:02:52.3]} 14.
g4 {[%clk 0:02:56.1]} 14... Rc8 {[%clk 0:02:41.9]} 15. g5 {[%clk 0:02:56.4]}
15... Ne4 {[%clk 0:02:41.6]} 16. Nxe4 {[%clk 0:02:52.5]} 16... dxe4 {[%clk
0:02:42.5]} 17. Bxe4 {[%clk 0:02:53.4]} 17... Bxe4 {[%clk 0:02:42.1]} 18. Qxe4
{[%clk 0:02:54.3]} 18... Nf5 {[%clk 0:02:42.1]} 19. d5 {[%clk 0:02:45.8]} 19...
Bxe5 {[%clk 0:02:36.8]} 20. Qxe5 {[%clk 0:02:34.5]} 20... Qxd5 {[%clk
0:02:29.3]} 21. Qxd5 {[%clk 0:02:32.9]} 21... exd5 {[%clk 0:02:30.2]} 22. Rxe8+
{[%clk 0:02:30.5]} 22... Rxe8 {[%clk 0:02:29.9]} 23. Rd1 {[%clk 0:02:31]} 23...
d4 {[%clk 0:02:22]} 24. Kf2 {[%clk 0:02:24.5]} 24... Re4 {[%clk 0:02:11.4]} 25.
Kf3 {[%clk 0:02:13]} 25... Re3+ {[%clk 0:02:11.4]} 26. Kg4 {[%clk 0:02:12.5]}
26... g6 {[%clk 0:02:04.9]} 27. Bxd4 {[%clk 0:02:05.2]} 27... Nxd4 {[%clk
0:02:01.8]} 28. Rxd4 {[%clk 0:02:04.9]} 28... Re2 {[%clk 0:02:02.3]} 29. Rd6
{[%clk 0:01:33.2]} 29... Rxh2 {[%clk 0:01:56]} 30. Rxa6 {[%clk 0:01:32.5]} 30...
Rxc2 {[%clk 0:01:55.8]} 31. a3 {[%clk 0:01:30.2]} 31... Rc3 {[%clk 0:01:52.9]}
32. b4 {[%clk 0:01:17.8]} 32... Kg7 {[%clk 0:01:36.7]} 33. Ra7 {[%clk
0:01:16.3]} 33... Rd3 {[%clk 0:01:24.8]} 34. Ra5 {[%clk 0:01:10.5]} 34... h5+
{[%clk 0:01:17]} 35. gxh6+ {[%clk 0:01:08.3]} 35... Kxh6 {[%clk 0:01:17.5]} 36.
f5 {[%clk 0:01:05.1]} 36... Rd4+ {[%clk 0:01:01.3]} 37. Kf3 {[%clk 0:01:01.7]}
37... gxf5 {[%clk 0:01:01.7]} 38. Rxb5 {[%clk 0:00:33.8]} 38... Rd3+ {[%clk
0:00:55.1]} 39. Kf4 {[%clk 0:00:34.4]} 39... Rxa3 {[%clk 0:00:54.3]} 40. Kxf5
{[%clk 0:00:31]} 40... Rf3+ {[%clk 0:00:51.2]} 41. Ke4 {[%clk 0:00:29.5]} 41...
Rb3 {[%clk 0:00:51.8]} 42. Rb8 {[%clk 0:00:29.5]} 42... Kg6 {[%clk 0:00:48.6]}
43. b5 {[%clk 0:00:28.3]} 43... Rb1 {[%clk 0:00:30.5]} 44. b6 {[%clk 0:00:27.3]}
44... Kf6 {[%clk 0:00:28.8]} 45. Kd5 {[%clk 0:00:27.2]} 45... Kf5 {[%clk
0:00:28.1]} 46. Kc6 {[%clk 0:00:25.2]} 46... Kf4 {[%clk 0:00:28.4]} 47. Rf8
{[%clk 0:00:18.8]} 47... f5 {[%clk 0:00:28]} 48. b7 {[%clk 0:00:19]} 48... Kg4
{[%clk 0:00:25]} 49. Rg8+ {[%clk 0:00:16.7]} 49... Kf3 {[%clk 0:00:24.8]} 50.
b8=Q {[%clk 0:00:16.8]} 50... Rxb8 {[%clk 0:00:23.9]} 51. Rxb8 {[%clk
0:00:17.7]} 51... f4 {[%clk 0:00:21.5]} 52. Kd5 {[%clk 0:00:18.1]} 52... Ke3
{[%clk 0:00:18]} 53. Rb3+ {[%clk 0:00:18.1]} 53... Ke2 {[%clk 0:00:17.6]} 54.
Ke4 {[%clk 0:00:18.4]} 54... f3 {[%clk 0:00:17.6]} 55. Rxf3 {[%clk 0:00:19]}
55... Kd2 {[%clk 0:00:17.6]} 56. Rh3 {[%clk 0:00:19]} 56... Ke2 {[%clk
0:00:17.6]} 57. Rh2+ {[%clk 0:00:19.1]} 57... Kf1 {[%clk 0:00:17.9]} 58. Ra2
{[%clk 0:00:19.7]} 58... Ke1 {[%clk 0:00:18.2]} 59. Kd3 {[%clk 0:00:19.6]} 59...
Kf1 {[%clk 0:00:18.2]} 60. Ke3 {[%clk 0:00:19.9]} 60... Kg1 {[%clk 0:00:18.8]}
61. Kf3 {[%clk 0:00:20.5]} 61... Kh1 {[%clk 0:00:19.7]} 62. Kg3 {[%clk 0:00:21]}
62... Kg1 {[%clk 0:00:19.4]} 63. Ra1# {[%clk 0:00:21.9]} 1-0

[Event "Late-Titled-Tuesday-Blitz-June-18-2024"]
[Site "Chess.com"]
[Date "2024.06.18"]
[Round "3"]
[White "Tsukasa06"]
[Black "OIAM03"]
[Result "0-1"]
[WhiteElo "2339"]
[BlackElo "2047"]
[TimeControl "180+1"]
[EndTime "14:30:05 PDT"]
[Termination "OIAM03 won on time"]

1. e4 {[%clk 0:03:00.9]} 1... c5 {[%clk 0:02:59.6]} 2. Nc3 {[%clk 0:03:00.5]}
2... d6 {[%clk 0:02:58.3]} 3. d4 {[%clk 0:03:00.5]} 3... cxd4 {[%clk 0:02:58.2]}
4. Qxd4 {[%clk 0:03:01.4]} 4... Nc6 {[%clk 0:02:56.8]} 5. Qd2 {[%clk 0:03:01.5]}
5... g6 {[%clk 0:02:54.1]} 6. b3 {[%clk 0:03:01.1]} 6... Bg7 {[%clk 0:02:53.8]}
7. Bb2 {[%clk 0:03:00.7]} 7... Nf6 {[%clk 0:02:51.1]} 8. O-O-O {[%clk
0:02:59.4]} 8... O-O {[%clk 0:02:49.3]} 9. Kb1 {[%clk 0:02:57.1]} 9... a5 {[%clk
0:02:47.8]} 10. a4 {[%clk 0:02:56.7]} 10... Nb4 {[%clk 0:02:40.9]} 11. f3 {[%clk
0:02:54.9]} 11... b6 {[%clk 0:02:32.3]} 12. g4 {[%clk 0:02:44.3]} 12... Nd7
{[%clk 0:02:30.1]} 13. h4 {[%clk 0:02:40.8]} 13... Bb7 {[%clk 0:02:17.6]} 14. h5
{[%clk 0:02:40.1]} 14... Nf6 {[%clk 0:01:19.2]} 15. Bc4 {[%clk 0:02:30.1]} 15...
Ba6 {[%clk 0:01:08.4]} 16. Bxa6 {[%clk 0:01:42.4]} 16... Nxa6 {[%clk 0:01:07.7]}
17. Nd5 {[%clk 0:01:28.4]} 17... Nc7 {[%clk 0:01:01]} 18. Nxf6+ {[%clk
0:01:24.8]} 18... Bxf6 {[%clk 0:00:51.9]} 19. Bxf6 {[%clk 0:01:20.4]} 19... exf6
{[%clk 0:00:51.4]} 20. Qxd6 {[%clk 0:00:59.9]} 20... Qxd6 {[%clk 0:00:50.4]} 21.
Rxd6 {[%clk 0:01:00.8]} 21... b5 {[%clk 0:00:47.4]} 22. axb5 {[%clk 0:00:53.8]}
22... Nxb5 {[%clk 0:00:46.7]} 23. Rxf6 {[%clk 0:00:53]} 23... Rfc8 {[%clk
0:00:40.6]} 24. hxg6 {[%clk 0:00:47.4]} 24... hxg6 {[%clk 0:00:36.3]} 25. Rb6
{[%clk 0:00:42.5]} 25... Na3+ {[%clk 0:00:35.7]} 26. Kb2 {[%clk 0:00:39.7]}
26... Nxc2 {[%clk 0:00:35.6]} 27. Ne2 {[%clk 0:00:32.9]} 27... Nb4 {[%clk
0:00:33]} 28. Nd4 {[%clk 0:00:26.6]} 28... Nd3+ {[%clk 0:00:31.4]} 29. Kb1
{[%clk 0:00:21.9]} 29... a4 {[%clk 0:00:31.1]} 30. bxa4 {[%clk 0:00:17]} 30...
Rxa4 {[%clk 0:00:30.5]} 31. Rd1 {[%clk 0:00:12.9]} 31... Ne5 {[%clk 0:00:19.5]}
32. g5 {[%clk 0:00:09.9]} 32... Nc4 {[%clk 0:00:18.4]} 33. Rb3 {[%clk
0:00:07.7]} 33... Rca8 {[%clk 0:00:16.3]} 34. Kc2 {[%clk 0:00:03.3]} 34... Ra2+
{[%clk 0:00:13.3]} 35. Kd3 {[%clk 0:00:03.5]} 35... Ne5+ {[%clk 0:00:11.9]} 36.
Ke3 {[%clk 0:00:03.6]} 36... R8a3 {[%clk 0:00:07.6]} 37. Rxa3 {[%clk 0:00:03.3]}
37... Rxa3+ {[%clk 0:00:07.4]} 38. Kf4 {[%clk 0:00:04.2]} 38... Nc4 {[%clk
0:00:03.4]} 39. Rc1 {[%clk 0:00:04.8]} 39... Nd6 {[%clk 0:00:02]} 0-1

[Event "Late-Titled-Tuesday-Blitz-June-18-2024"]
[Site "Chess.com"]
[Date "2024.06.18"]
[Round "3"]
[White "AlexeiShirov"]
[Black "ncofre98"]
[Result "1-0"]
[WhiteElo "2859"]
[BlackElo "2564"]
[TimeControl "180+1"]
[EndTime "14:30:06 PDT"]
[Termination "AlexeiShirov won on time"]

1. e4 {[%clk 0:03:00.9]} 1... e6 {[%clk 0:02:59.8]} 2. d4 {[%clk 0:02:59.6]}
2... d5 {[%clk 0:03:00]} 3. e5 {[%clk 0:03:00]} 3... Qd7 {[%clk 0:03:00]} 4. f4
{[%clk 0:02:58.1]} 4... Ne7 {[%clk 0:02:59.5]} 5. Nf3 {[%clk 0:02:56.4]} 5... b6
{[%clk 0:02:59.6]} 6. b3 {[%clk 0:02:52.7]} 6... Nf5 {[%clk 0:02:54.3]} 7. g4
{[%clk 0:02:50.3]} 7... Ne7 {[%clk 0:02:53.6]} 8. Rg1 {[%clk 0:02:44.2]} 8... h5
{[%clk 0:02:50.9]} 9. h3 {[%clk 0:02:43.4]} 9... hxg4 {[%clk 0:02:50.7]} 10.
hxg4 {[%clk 0:02:42.5]} 10... Ba6 {[%clk 0:02:43]} 11. c4 {[%clk 0:02:41.3]}
11... Bb7 {[%clk 0:02:40.9]} 12. Nc3 {[%clk 0:02:38.4]} 12... Nbc6 {[%clk
0:02:40.2]} 13. Be3 {[%clk 0:02:30.7]} 13... O-O-O {[%clk 0:02:32]} 14. Qd2
{[%clk 0:02:20.9]} 14... f6 {[%clk 0:02:22.5]} 15. O-O-O {[%clk 0:02:16.8]}
15... fxe5 {[%clk 0:02:09.8]} 16. dxe5 {[%clk 0:02:15.8]} 16... Qe8 {[%clk
0:02:07]} 17. Qf2 {[%clk 0:02:08.6]} 17... Kb8 {[%clk 0:02:00.8]} 18. cxd5
{[%clk 0:02:00.5]} 18... Nxd5 {[%clk 0:01:55.6]} 19. Nxd5 {[%clk 0:01:57.2]}
19... exd5 {[%clk 0:01:46.6]} 20. Kb1 {[%clk 0:01:50.7]} 20... d4 {[%clk
0:01:26.4]} 21. Bd2 {[%clk 0:01:32.9]} 21... d3 {[%clk 0:01:13.7]} 22. Be3
{[%clk 0:01:28.7]} 22... Nb4 {[%clk 0:01:12.6]} 23. f5 {[%clk 0:01:00.6]} 23...
Qc6 {[%clk 0:00:34.2]} 24. Ne1 {[%clk 0:00:45]} 24... Qb5 {[%clk 0:00:13]} 25.
e6 {[%clk 0:00:40]} 25... Be7 {[%clk 0:00:11.2]} 26. Bd4 {[%clk 0:00:20.2]}
26... Rhg8 {[%clk 0:00:04.4]} 27. Nxd3 {[%clk 0:00:18.4]} 27... Nxd3 {[%clk
0:00:03.3]} 28. Bxd3 {[%clk 0:00:17.3]} 28... Qa5 {[%clk 0:00:03.1]} 29. Bb2
{[%clk 0:00:16.8]} 29... Bc6 {[%clk 0:00:02.4]} 30. Bc2 {[%clk 0:00:16.7]} 30...
Qa6 {[%clk 0:00:01.8]} 31. Rxd8+ {[%clk 0:00:16.1]} 31... Bxd8 {[%clk
0:00:02.1]} 32. Bc3 {[%clk 0:00:16.2]} 32... Qb7 {[%clk 0:00:01.7]} 33. Rd1
{[%clk 0:00:15.2]} 33... Be7 {[%clk 0:00:02.1]} 34. Qe3 {[%clk 0:00:14.9]} 34...
a5 {[%clk 0:00:01.9]} 35. g5 {[%clk 0:00:14.3]} 35... Rf8 {[%clk 0:00:01.2]} 36.
f6 {[%clk 0:00:13.5]} 36... gxf6 {[%clk 0:00:02.1]} 37. gxf6 {[%clk 0:00:13.4]}
37... Bxf6 {[%clk 0:00:02.4]} 38. e7 {[%clk 0:00:13.5]} 38... Bxe7 {[%clk
0:00:02]} 39. Qxe7 {[%clk 0:00:13.2]} 39... Rf2 {[%clk 0:00:01.9]} 40. Qe3
{[%clk 0:00:12.6]} 40... Rg2 {[%clk 0:00:01.7]} 41. Qd3 {[%clk 0:00:12.1]} 41...
a4 {[%clk 0:00:01.6]} 42. Qd8+ {[%clk 0:00:10]} 42... Ka7 {[%clk 0:00:01.5]} 43.
Rd2 {[%clk 0:00:09.4]} 43... Rg1+ {[%clk 0:00:01.3]} 44. Kb2 {[%clk 0:00:09.3]}
44... axb3 {[%clk 0:00:01]} 45. axb3 {[%clk 0:00:08.5]} 45... Rg3 {[%clk
0:00:01.7]} 46. Qd4 {[%clk 0:00:08]} 46... Rg6 {[%clk 0:00:01.8]} 47. Bxg6
{[%clk 0:00:05.3]} 1-0

[Event "Late-Titled-Tuesday-Blitz-June-18-2024"]
[Site "Chess.com"]
[Date "2024.06.18"]
[Round "3"]
[White "jaramsdal"]
[Black "Statham_01"]
[Result "0-1"]
[WhiteElo "2456"]
[BlackElo "2702"]
[TimeControl "180+1"]
[EndTime "14:30:07 PDT"]
[Termination "Statham_01 won by checkmate"]

1. e4 {[%clk 0:03:00.9]} 1... c5 {[%clk 0:02:58.1]} 2. a3 {[%clk 0:03:00.2]}
2... g6 {[%clk 0:02:51.6]} 3. Bc4 {[%clk 0:02:59.3]} 3... Bg7 {[%clk 0:02:51.3]}
4. Nc3 {[%clk 0:02:58.8]} 4... Nc6 {[%clk 0:02:50.6]} 5. h4 {[%clk 0:02:56.7]}
5... h5 {[%clk 0:02:49.7]} 6. d3 {[%clk 0:02:50.6]} 6... e6 {[%clk 0:02:49.2]}
7. Bg5 {[%clk 0:02:46.9]} 7... Nge7 {[%clk 0:02:48.9]} 8. Ba2 {[%clk 0:02:33.9]}
8... d6 {[%clk 0:02:48.1]} 9. Nge2 {[%clk 0:02:30.4]} 9... a6 {[%clk 0:02:47]}
10. Nf4 {[%clk 0:02:21.7]} 10... b5 {[%clk 0:02:41]} 11. Qf3 {[%clk 0:02:17.9]}
11... Nd4 {[%clk 0:02:37.9]} 12. Qd1 {[%clk 0:02:16.7]} 12... Bb7 {[%clk
0:02:35.7]} 13. Nce2 {[%clk 0:02:06.5]} 13... Qd7 {[%clk 0:02:30.2]} 14. Nxd4
{[%clk 0:02:02.4]} 14... cxd4 {[%clk 0:02:23.7]} 15. Bxe7 {[%clk 0:01:52.5]}
15... Qxe7 {[%clk 0:02:22.1]} 16. Bxe6 {[%clk 0:01:48.4]} 16... fxe6 {[%clk
0:02:16.8]} 17. Nxg6 {[%clk 0:01:48.3]} 17... Qf7 {[%clk 0:02:13.8]} 18. Nxh8
{[%clk 0:01:48.5]} 18... Bxh8 {[%clk 0:02:14.7]} 19. a4 {[%clk 0:01:25]} 19...
b4 {[%clk 0:02:12.1]} 20. a5 {[%clk 0:01:25.4]} 20... O-O-O {[%clk 0:02:07.8]}
21. Ra4 {[%clk 0:01:22.8]} 21... d5 {[%clk 0:01:58.8]} 22. Qe2 {[%clk
0:01:13.6]} 22... dxe4 {[%clk 0:01:52.8]} 23. dxe4 {[%clk 0:01:14.5]} 23... Qf4
{[%clk 0:01:12.7]} 24. O-O {[%clk 0:00:47.9]} 24... Be5 {[%clk 0:01:00.7]} 25.
g3 {[%clk 0:00:45.2]} 25... Rg8 {[%clk 0:00:53.2]} 26. Rxb4 {[%clk 0:00:24.1]}
26... Bc7 {[%clk 0:00:30.7]} 27. Kh2 {[%clk 0:00:09]} 27... Qxh4+ {[%clk
0:00:28.6]} 28. Kg1 {[%clk 0:00:08.3]} 28... Qxe4 {[%clk 0:00:18.4]} 29. Qxe4
{[%clk 0:00:08]} 29... Bxe4 {[%clk 0:00:19.3]} 30. Rxd4 {[%clk 0:00:07.3]} 30...
Bb7 {[%clk 0:00:17.5]} 31. Rh4 {[%clk 0:00:06.2]} 31... Rg5 {[%clk 0:00:12.7]}
32. Re1 {[%clk 0:00:06.1]} 32... Bd5 {[%clk 0:00:12.2]} 33. b3 {[%clk
0:00:05.8]} 33... Bxa5 {[%clk 0:00:12.5]} 34. Re2 {[%clk 0:00:04.4]} 34... Bb6
{[%clk 0:00:12.7]} 35. c4 {[%clk 0:00:04]} 35... Rxg3+ {[%clk 0:00:11.4]} 36.
Kf1 {[%clk 0:00:02.9]} 36... Bg2+ {[%clk 0:00:11.6]} 37. Ke1 {[%clk 0:00:02.5]}
37... Ba5+ {[%clk 0:00:10.1]} 38. Kd1 {[%clk 0:00:02.5]} 38... Rxb3 {[%clk
0:00:08.8]} 39. Rxe6 {[%clk 0:00:02.5]} 39... Bf3+ {[%clk 0:00:06.8]} 40. Kc1
{[%clk 0:00:02.5]} 40... Bg4 {[%clk 0:00:05.9]} 41. Re5 {[%clk 0:00:02.2]} 41...
Bc3 {[%clk 0:00:05.5]} 42. Kc2 {[%clk 0:00:02.5]} 42... Ra3 {[%clk 0:00:04.8]}
43. Re3 {[%clk 0:00:03.2]} 43... Bf5+ {[%clk 0:00:04.5]} 44. Kc1 {[%clk
0:00:03.1]} 44... Ra1# {[%clk 0:00:04.7]} 0-1